[Event "Betsys MČR v online bleskovém šachu 2021"]
[Site "Chess.com"]
[Date "2021.04.17"]
[Round "12"]
[White "krajic001"]
[Black "AlenaSouralova"]
[Result "0-1"]
[WhiteElo "1070"]
[BlackElo "939"]
[TimeControl "180+1"]
[EndTime "11:00:48 PDT"]
[Termination "Uživatel AlenaSouralova zvítězil na čas"]

1. e4 {[%clk 0:03:00.9]} 1... e5 {[%clk 0:02:59.6]} 2. Bc4 {[%clk 0:02:58.7]}
2... Bc5 {[%clk 0:02:49.2]} 3. Nf3 {[%clk 0:02:56.4]} 3... Nc6 {[%clk
0:02:45.7]} 4. b4 {[%clk 0:02:54.6]} 4... Bd4 {[%clk 0:02:41.2]} 5. c3 {[%clk
0:02:38.8]} 5... Bb6 {[%clk 0:02:25.7]} 6. d4 {[%clk 0:02:37.1]} 6... exd4
{[%clk 0:02:17.6]} 7. Ng5 {[%clk 0:02:34.7]} 7... Nh6 {[%clk 0:02:03.2]} 8. a4
{[%clk 0:02:32.1]} 8... dxc3 {[%clk 0:02:00.6]} 9. O-O {[%clk 0:02:17.8]} 9...
d6 {[%clk 0:01:44.1]} 10. a5 {[%clk 0:02:02.4]} 10... Bd4 {[%clk 0:01:42.7]} 11.
Ra2 {[%clk 0:01:42.6]} 11... Nxb4 {[%clk 0:01:36.8]} 12. Qxd4 {[%clk 0:01:35.5]}
12... Nxa2 {[%clk 0:01:36]} 13. Qxg7 {[%clk 0:01:34.3]} 13... Rf8 {[%clk
0:01:27.8]} 14. Qxh6 {[%clk 0:01:27.8]} 14... c2 {[%clk 0:01:22]} 15. Bxa2
{[%clk 0:01:16.6]} 15... cxb1=Q {[%clk 0:01:19.4]} 16. Bxb1 {[%clk 0:01:16.1]}
16... Bg4 {[%clk 0:01:10.2]} 17. Nxh7 {[%clk 0:00:58.9]} 17... Rg8 {[%clk
0:01:05.3]} 18. Nf6+ {[%clk 0:00:53.1]} 18... Ke7 {[%clk 0:01:02.2]} 19. Nxg8+
{[%clk 0:00:48.9]} 19... Qxg8 {[%clk 0:01:03.1]} 20. Bg5+ {[%clk 0:00:39.6]}
20... f6 {[%clk 0:01:01.1]} 21. Qxf6+ {[%clk 0:00:38.1]} 21... Kd7 {[%clk
0:00:58.8]} 22. e5 {[%clk 0:00:31.2]} 22... dxe5 {[%clk 0:00:55.2]} 23. Qxe5
{[%clk 0:00:20.6]} 23... Rd8 {[%clk 0:00:48.5]} 24. Qd4+ {[%clk 0:00:08.2]}
24... Kc8 {[%clk 0:00:47.4]} 25. Qxg4+ {[%clk 0:00:07.4]} 25... Kb8 {[%clk
0:00:34.3]} 26. Bf5 {[%clk 0:00:07]} 26... Qd5 {[%clk 0:00:25.1]} 27. Be3 {[%clk
0:00:05.9]} 27... Qxa5 {[%clk 0:00:22.6]} 28. Qf4 {[%clk 0:00:04.2]} 28... Qd5
{[%clk 0:00:19.5]} 29. Be4 {[%clk 0:00:03.1]} 29... Qd1 {[%clk 0:00:19]} 0-1

[Event "Betsys MČR v online bleskovém šachu 2021"]
[Site "Chess.com"]
[Date "2021.04.17"]
[Round "12"]
[White "DenryS"]
[Black "Vesselovsky52"]
[Result "1-0"]
[WhiteElo "2217"]
[BlackElo "2315"]
[TimeControl "180+1"]
[EndTime "11:00:50 PDT"]
[Termination "Uživatel DenryS zvítězil matem"]

1. d4 {[%clk 0:03:00.9]} 1... c5 {[%clk 0:02:59.3]} 2. dxc5 {[%clk 0:02:57.5]}
2... e6 {[%clk 0:02:58.3]} 3. Nf3 {[%clk 0:02:56.7]} 3... Bxc5 {[%clk
0:02:56.5]} 4. e3 {[%clk 0:02:56.2]} 4... Nf6 {[%clk 0:02:54.7]} 5. Bd3 {[%clk
0:02:56]} 5... d5 {[%clk 0:02:52]} 6. O-O {[%clk 0:02:55.4]} 6... O-O {[%clk
0:02:51.7]} 7. Nbd2 {[%clk 0:02:50.5]} 7... Nc6 {[%clk 0:02:49.2]} 8. b3 {[%clk
0:02:45]} 8... e5 {[%clk 0:02:46.9]} 9. e4 {[%clk 0:02:40.4]} 9... Bg4 {[%clk
0:02:28.9]} 10. Bb2 {[%clk 0:02:30]} 10... Nd4 {[%clk 0:02:27.6]} 11. exd5
{[%clk 0:02:23]} 11... Qxd5 {[%clk 0:02:09.9]} 12. Bc4 {[%clk 0:01:54.5]} 12...
Qd6 {[%clk 0:01:50.8]} 13. c3 {[%clk 0:01:43.7]} 13... Nxf3+ {[%clk 0:01:41.4]}
14. Nxf3 {[%clk 0:01:40.8]} 14... Qc7 {[%clk 0:01:40.9]} 15. Be2 {[%clk
0:01:32.2]} 15... Rad8 {[%clk 0:01:36.2]} 16. Qc2 {[%clk 0:01:26.6]} 16... e4
{[%clk 0:01:33.7]} 17. Ng5 {[%clk 0:01:15.3]} 17... e3 {[%clk 0:01:08.2]} 18. c4
{[%clk 0:00:51.2]} 18... Rd7 {[%clk 0:01:02.9]} 19. Bxf6 {[%clk 0:00:48.1]}
19... g6 {[%clk 0:00:46.5]} 20. Bxg4 {[%clk 0:00:43.9]} 20... Rd2 {[%clk
0:00:45.3]} 21. Qe4 {[%clk 0:00:35.8]} 21... Rxf2 {[%clk 0:00:38.4]} 22. Bd4
{[%clk 0:00:18.1]} 22... Rxf1+ {[%clk 0:00:21]} 23. Rxf1 {[%clk 0:00:17]} 23...
e2 {[%clk 0:00:19.1]} 24. Bxe2 {[%clk 0:00:15.8]} 24... Qb6 {[%clk 0:00:14.4]}
25. Nf3 {[%clk 0:00:15.2]} 25... Rd8 {[%clk 0:00:12.8]} 26. Bxc5 {[%clk
0:00:14.8]} 26... Qxc5+ {[%clk 0:00:12.4]} 27. Kh1 {[%clk 0:00:15.4]} 27... h6
{[%clk 0:00:11.3]} 28. Ne5 {[%clk 0:00:15.4]} 28... Re8 {[%clk 0:00:08.2]} 29.
Rxf7 {[%clk 0:00:12]} 29... Qxe5 {[%clk 0:00:07.3]} 30. Qxg6+ {[%clk 0:00:12]}
30... Kh8 {[%clk 0:00:06.4]} 31. Qh7# {[%clk 0:00:12.1]} 1-0

[Event "Betsys MČR v online bleskovém šachu 2021"]
[Site "Chess.com"]
[Date "2021.04.17"]
[Round "12"]
[White "Pantata007"]
[Black "TCTCGTGCTATG"]
[Result "0-1"]
[WhiteElo "2225"]
[BlackElo "1940"]
[TimeControl "180+1"]
[EndTime "11:00:50 PDT"]
[Termination "Uživatel TCTCGTGCTATG zvítězil na čas"]

1. d4 {[%clk 0:02:58.3]} 1... Nf6 {[%clk 0:02:59.5]} 2. c4 {[%clk 0:02:57.8]}
2... c5 {[%clk 0:02:58.3]} 3. d5 {[%clk 0:02:57.4]} 3... g6 {[%clk 0:02:58.3]}
4. Nc3 {[%clk 0:02:57]} 4... d6 {[%clk 0:02:58.1]} 5. e4 {[%clk 0:02:57.3]} 5...
Bg7 {[%clk 0:02:58.3]} 6. Nf3 {[%clk 0:02:57.7]} 6... O-O {[%clk 0:02:58.8]} 7.
Be2 {[%clk 0:02:58.2]} 7... Nbd7 {[%clk 0:02:58.6]} 8. O-O {[%clk 0:02:57.1]}
8... a6 {[%clk 0:02:58.4]} 9. h3 {[%clk 0:02:51.7]} 9... Rb8 {[%clk 0:02:54.7]}
10. a4 {[%clk 0:02:51.2]} 10... Ne8 {[%clk 0:02:44]} 11. a5 {[%clk 0:02:43.2]}
11... Ne5 {[%clk 0:02:43.7]} 12. Bf4 {[%clk 0:02:16.2]} 12... Nxf3+ {[%clk
0:02:35.5]} 13. Bxf3 {[%clk 0:02:17.1]} 13... f5 {[%clk 0:02:35.6]} 14. Bh2
{[%clk 0:02:05.5]} 14... Kh8 {[%clk 0:02:25]} 15. Re1 {[%clk 0:02:02]} 15... e6
{[%clk 0:02:16]} 16. dxe6 {[%clk 0:01:42.5]} 16... Bxe6 {[%clk 0:02:15.1]} 17.
exf5 {[%clk 0:01:36.8]} 17... Bxf5 {[%clk 0:02:14.3]} 18. Qd2 {[%clk 0:01:21.4]}
18... b5 {[%clk 0:02:12.2]} 19. cxb5 {[%clk 0:01:03.1]} 19... axb5 {[%clk
0:02:08.7]} 20. a6 {[%clk 0:01:02.6]} 20... Bxh3 {[%clk 0:02:02.1]} 21. a7
{[%clk 0:00:56.3]} 21... Ra8 {[%clk 0:01:35.9]} 22. Bxa8 {[%clk 0:00:52.2]}
22... Qxa8 {[%clk 0:01:36.3]} 23. gxh3 {[%clk 0:00:51.5]} 23... Nc7 {[%clk
0:01:31]} 24. Qxd6 {[%clk 0:00:48.2]} 24... Qf3 {[%clk 0:01:24.5]} 25. Bg3
{[%clk 0:00:41.3]} 25... Na8 {[%clk 0:01:19.5]} 26. Qxc5 {[%clk 0:00:32.3]}
26... h6 {[%clk 0:01:15.1]} 27. Qxb5 {[%clk 0:00:25.7]} 27... Bd4 {[%clk
0:01:12.8]} 28. Qf1 {[%clk 0:00:06.4]} 28... Qxg3+ {[%clk 0:01:09.6]} 29. Qg2
{[%clk 0:00:06.7]} 29... Bxf2+ {[%clk 0:01:07.7]} 30. Kh1 {[%clk 0:00:07.1]}
30... Bxe1 {[%clk 0:01:04.3]} 31. Qxg3 {[%clk 0:00:06.6]} 31... Bxg3 {[%clk
0:01:04.2]} 32. Nd5 {[%clk 0:00:04.4]} 32... Be5 {[%clk 0:01:01.7]} 33. Rb1
{[%clk 0:00:03]} 33... Rf7 {[%clk 0:00:59.4]} 34. b4 {[%clk 0:00:02.7]} 34...
Rxa7 {[%clk 0:00:58.6]} 35. b5 {[%clk 0:00:03]} 35... Rb7 {[%clk 0:00:58.5]} 36.
b6 {[%clk 0:00:02.9]} 36... Bd4 {[%clk 0:00:58]} 37. Rb4 {[%clk 0:00:03]} 37...
Bxb6 {[%clk 0:00:55.8]} 38. Nf4 {[%clk 0:00:01.8]} 38... Kg7 {[%clk 0:00:51.7]}
39. Ne6+ {[%clk 0:00:01.5]} 39... Kf6 {[%clk 0:00:48.5]} 40. Nd8 {[%clk
0:00:01.5]} 40... Rc7 {[%clk 0:00:44.7]} 0-1

[Event "Betsys MČR v online bleskovém šachu 2021"]
[Site "Chess.com"]
[Date "2021.04.17"]
[Round "12"]
[White "MrNikdo"]
[Black "Lisak007"]
[Result "1-0"]
[WhiteElo "2053"]
[BlackElo "1816"]
[TimeControl "180+1"]
[EndTime "11:00:50 PDT"]
[Termination "Uživatel MrNikdo zvítězil na čas"]

1. e4 {[%clk 0:03:00.9]} 1... c5 {[%clk 0:02:59.3]} 2. Nf3 {[%clk 0:03:00.4]}
2... Nc6 {[%clk 0:02:59]} 3. Nc3 {[%clk 0:03:00.4]} 3... g6 {[%clk 0:02:57]} 4.
d3 {[%clk 0:02:58.2]} 4... Bg7 {[%clk 0:02:57.1]} 5. Be3 {[%clk 0:02:58.8]} 5...
d6 {[%clk 0:02:56.9]} 6. g3 {[%clk 0:02:59.3]} 6... Bg4 {[%clk 0:02:55.7]} 7.
Bg2 {[%clk 0:02:59.6]} 7... e5 {[%clk 0:02:47.6]} 8. h3 {[%clk 0:02:56.9]} 8...
Be6 {[%clk 0:02:44.9]} 9. Qd2 {[%clk 0:02:54.9]} 9... Nge7 {[%clk 0:02:40.8]}
10. O-O {[%clk 0:02:51.4]} 10... O-O {[%clk 0:02:40.7]} 11. Ng5 {[%clk
0:02:47.4]} 11... Bd7 {[%clk 0:02:37.7]} 12. f4 {[%clk 0:02:46.8]} 12... h6
{[%clk 0:02:28.8]} 13. Nf3 {[%clk 0:02:44.2]} 13... h5 {[%clk 0:02:25.7]} 14.
Kh2 {[%clk 0:02:42.6]} 14... Nd4 {[%clk 0:02:19.9]} 15. Ne2 {[%clk 0:02:16.6]}
15... Nxf3+ {[%clk 0:02:13.9]} 16. Bxf3 {[%clk 0:02:16.3]} 16... Nc6 {[%clk
0:02:12.5]} 17. c3 {[%clk 0:02:15.7]} 17... h4 {[%clk 0:02:11.8]} 18. g4 {[%clk
0:02:13.1]} 18... f5 {[%clk 0:02:10.7]} 19. gxf5 {[%clk 0:02:06.8]} 19... gxf5
{[%clk 0:02:10.3]} 20. Rg1 {[%clk 0:02:06.7]} 20... Kh7 {[%clk 0:02:04.4]} 21.
Rg2 {[%clk 0:01:58]} 21... Qe7 {[%clk 0:02:02.8]} 22. Rag1 {[%clk 0:01:56.9]}
22... Rg8 {[%clk 0:02:02.9]} 23. Bh5 {[%clk 0:01:54.5]} 23... fxe4 {[%clk
0:01:56.5]} 24. Bg6+ {[%clk 0:01:53.5]} 24... Kh8 {[%clk 0:01:55.8]} 25. Bxe4
{[%clk 0:01:53.9]} 25... Bf6 {[%clk 0:01:49.6]} 26. fxe5 {[%clk 0:01:37]} 26...
Nxe5 {[%clk 0:01:42.2]} 27. Nf4 {[%clk 0:01:21.9]} 27... Bc6 {[%clk 0:01:20.2]}
28. Nd5 {[%clk 0:01:14]} 28... Qe6 {[%clk 0:01:03.9]} 29. Qf2 {[%clk 0:00:50.6]}
29... Rgf8 {[%clk 0:00:12.8]} 30. Qf4 {[%clk 0:00:42.3]} 30... Be7 {[%clk
0:00:01.6]} 31. Qh6+ {[%clk 0:00:23.9]} 31... Qxh6 {[%clk 0:00:01.3]} 32. Bxh6
{[%clk 0:00:24.8]} 1-0

[Event "Betsys MČR v online bleskovém šachu 2021"]
[Site "Chess.com"]
[Date "2021.04.17"]
[Round "12"]
[White "jachym08"]
[Black "Lipican"]
[Result "0-1"]
[WhiteElo "2202"]
[BlackElo "2122"]
[TimeControl "180+1"]
[EndTime "11:00:51 PDT"]
[Termination "Uživatel Lipican zvítězil po vzdání soupeře"]

1. d4 {[%clk 0:03:00.9]} 1... Nf6 {[%clk 0:02:59.3]} 2. c4 {[%clk 0:02:59.5]}
2... g6 {[%clk 0:02:58.8]} 3. Nc3 {[%clk 0:02:58.8]} 3... Bg7 {[%clk 0:02:58.2]}
4. e4 {[%clk 0:02:58.4]} 4... d6 {[%clk 0:02:58]} 5. Nf3 {[%clk 0:02:58.2]} 5...
O-O {[%clk 0:02:56.9]} 6. Be2 {[%clk 0:02:58.2]} 6... Bg4 {[%clk 0:02:55.2]} 7.
Be3 {[%clk 0:02:53.2]} 7... Nfd7 {[%clk 0:02:54.3]} 8. O-O {[%clk 0:02:49.5]}
8... Nc6 {[%clk 0:02:53.6]} 9. d5 {[%clk 0:02:40.6]} 9... Bxf3 {[%clk
0:02:48.8]} 10. Bxf3 {[%clk 0:02:36]} 10... Na5 {[%clk 0:02:46.6]} 11. Qd3
{[%clk 0:02:28.7]} 11... Ne5 {[%clk 0:02:36.2]} 12. Qe2 {[%clk 0:02:18.5]} 12...
Naxc4 {[%clk 0:02:33.6]} 13. Rac1 {[%clk 0:02:16.7]} 13... c5 {[%clk 0:02:19.5]}
14. dxc6 {[%clk 0:02:14.8]} 14... bxc6 {[%clk 0:02:18.7]} 15. b3 {[%clk
0:02:02.9]} 15... Nxe3 {[%clk 0:02:15.8]} 16. Qxe3 {[%clk 0:02:03.8]} 16...
Nxf3+ {[%clk 0:02:13.2]} 17. Qxf3 {[%clk 0:02:03.1]} 17... Qb6 {[%clk
0:02:09.3]} 18. Rfd1 {[%clk 0:02:00.2]} 18... Rfc8 {[%clk 0:02:05.4]} 19. g3
{[%clk 0:01:53]} 19... Qb4 {[%clk 0:02:03.7]} 20. Ne2 {[%clk 0:01:44.8]} 20...
a5 {[%clk 0:01:57]} 21. Rc4 {[%clk 0:01:42.7]} 21... Qb6 {[%clk 0:01:53.4]} 22.
Rdc1 {[%clk 0:01:29.7]} 22... c5 {[%clk 0:01:50.7]} 23. Nf4 {[%clk 0:01:24.3]}
23... e6 {[%clk 0:01:47.3]} 24. Nd3 {[%clk 0:01:23.4]} 24... Bd4 {[%clk
0:01:40.6]} 25. h4 {[%clk 0:01:18.6]} 25... e5 {[%clk 0:01:39.7]} 26. h5 {[%clk
0:01:14.7]} 26... Kg7 {[%clk 0:01:36.7]} 27. h6+ {[%clk 0:01:08.4]} 27... Kxh6
{[%clk 0:01:26]} 28. Qxf7 {[%clk 0:01:07.9]} 28... Ra7 {[%clk 0:01:19.5]} 29.
Qe6 {[%clk 0:01:05.3]} 29... Kg7 {[%clk 0:01:12.7]} 30. Qxc8 {[%clk 0:01:04]}
30... Rf7 {[%clk 0:01:11.4]} 31. Kg2 {[%clk 0:01:02.9]} 31... a4 {[%clk
0:01:07.4]} 32. Rxa4 {[%clk 0:00:58.3]} 32... Qb5 {[%clk 0:01:07.5]} 33. Rac4
{[%clk 0:00:57]} 33... Ra7 {[%clk 0:01:06.1]} 34. Rh1 {[%clk 0:00:52.9]} 34...
Qa5 {[%clk 0:01:00.8]} 35. Qh3 {[%clk 0:00:47.7]} 35... h5 {[%clk 0:00:58.9]}
36. Qe6 {[%clk 0:00:47.6]} 36... Qd2 {[%clk 0:00:57.3]} 37. Rxd4 {[%clk
0:00:35.5]} 37... cxd4 {[%clk 0:00:53.5]} 38. Nb4 {[%clk 0:00:35.2]} 38... Qxb4
{[%clk 0:00:51.3]} 39. Rc1 {[%clk 0:00:31.9]} 39... Rf7 {[%clk 0:00:48.3]} 40.
Rc2 {[%clk 0:00:17.6]} 40... d3 {[%clk 0:00:44.8]} 41. Rb2 {[%clk 0:00:17.3]}
41... Qd4 {[%clk 0:00:43.2]} 42. Rd2 {[%clk 0:00:15.6]} 42... Qc3 {[%clk
0:00:42.9]} 43. Rd1 {[%clk 0:00:15.5]} 43... d2 {[%clk 0:00:43]} 44. Qd5 {[%clk
0:00:15.4]} 44... Qf3+ {[%clk 0:00:41.4]} 45. Kh3 {[%clk 0:00:15.2]} 45... Qxd1
{[%clk 0:00:39.5]} 0-1

[Event "Betsys MČR v online bleskovém šachu 2021"]
[Site "Chess.com"]
[Date "2021.04.17"]
[Round "12"]
[White "Mikkes33"]
[Black "DONSANMIGUEL"]
[Result "1-0"]
[WhiteElo "1616"]
[BlackElo "1772"]
[TimeControl "180+1"]
[EndTime "11:00:52 PDT"]
[Termination "Uživatel Mikkes33 zvítězil matem"]

1. e4 {[%clk 0:03:00.9]} 1... a6 {[%clk 0:03:00.9]} 2. Nf3 {[%clk 0:03:00.2]}
2... b5 {[%clk 0:03:01.2]} 3. d4 {[%clk 0:02:59.4]} 3... Bb7 {[%clk 0:03:02.1]}
4. Nbd2 {[%clk 0:02:55.7]} 4... Nf6 {[%clk 0:03:02.1]} 5. Bd3 {[%clk 0:02:52.8]}
5... c5 {[%clk 0:03:02]} 6. dxc5 {[%clk 0:02:48]} 6... e6 {[%clk 0:03:01.3]} 7.
a4 {[%clk 0:02:36]} 7... Bxc5 {[%clk 0:02:56.8]} 8. axb5 {[%clk 0:02:34.2]} 8...
Qc7 {[%clk 0:02:56.2]} 9. bxa6 {[%clk 0:02:26.5]} 9... Nxa6 {[%clk 0:02:53]} 10.
O-O {[%clk 0:02:23.1]} 10... Ng4 {[%clk 0:02:49.1]} 11. h3 {[%clk 0:02:16.9]}
11... h5 {[%clk 0:02:45.4]} 12. c3 {[%clk 0:01:52.8]} 12... Qb6 {[%clk
0:02:05.1]} 13. Qe2 {[%clk 0:01:47.7]} 13... Nc7 {[%clk 0:01:47.1]} 14. Rxa8+
{[%clk 0:01:45.7]} 14... Bxa8 {[%clk 0:01:47.1]} 15. b4 {[%clk 0:01:44.8]} 15...
Bd6 {[%clk 0:01:44.1]} 16. Nc4 {[%clk 0:01:40]} 16... Qc6 {[%clk 0:01:41.2]} 17.
Nxd6+ {[%clk 0:01:37.8]} 17... Qxd6 {[%clk 0:01:41.2]} 18. hxg4 {[%clk
0:00:59.7]} 18... hxg4 {[%clk 0:01:40]} 19. e5 {[%clk 0:00:59.5]} 19... gxf3
{[%clk 0:01:18.3]} 20. exd6 {[%clk 0:00:55.1]} 20... fxg2 {[%clk 0:01:05.4]} 21.
f3 {[%clk 0:00:50]} 21... Rh1+ {[%clk 0:01:00.7]} 22. Kxg2 {[%clk 0:00:47.5]}
22... Rxf1 {[%clk 0:00:51.5]} 23. Kxf1 {[%clk 0:00:45.3]} 23... Nd5 {[%clk
0:00:51.6]} 24. Be4 {[%clk 0:00:41.1]} 24... Bc6 {[%clk 0:00:41.9]} 25. Qa6
{[%clk 0:00:33.2]} 25... f5 {[%clk 0:00:26.3]} 26. Bxd5 {[%clk 0:00:31.4]} 26...
Bxd5 {[%clk 0:00:26.4]} 27. Qc8+ {[%clk 0:00:30.3]} 27... Kf7 {[%clk 0:00:26.3]}
28. Qxd7+ {[%clk 0:00:29.3]} 28... Kg6 {[%clk 0:00:24.6]} 29. Qe8+ {[%clk
0:00:27.3]} 29... Kh7 {[%clk 0:00:16.9]} 30. d7 {[%clk 0:00:26.4]} 30... Bc4+
{[%clk 0:00:15.1]} 31. Kf2 {[%clk 0:00:24.8]} 31... Bb5 {[%clk 0:00:15.2]} 32.
Qh5+ {[%clk 0:00:22.3]} 32... Kg8 {[%clk 0:00:13.4]} 33. d8=Q+ {[%clk
0:00:21.1]} 33... Be8 {[%clk 0:00:05.4]} 34. Qdxe8# {[%clk 0:00:19.9]} 1-0

[Event "Betsys MČR v online bleskovém šachu 2021"]
[Site "Chess.com"]
[Date "2021.04.17"]
[Round "12"]
[White "Tassa15"]
[Black "tondapesek"]
[Result "0-1"]
[WhiteElo "874"]
[BlackElo "1138"]
[TimeControl "180+1"]
[EndTime "11:00:52 PDT"]
[Termination "Uživatel tondapesek zvítězil po vzdání soupeře"]

1. d4 {[%clk 0:03:00.9]} 1... d6 {[%clk 0:02:59.9]} 2. Nf3 {[%clk 0:03:00.1]}
2... e6 {[%clk 0:02:58]} 3. Bf4 {[%clk 0:02:59.6]} 3... Nf6 {[%clk 0:02:56.6]}
4. e3 {[%clk 0:02:58.9]} 4... Nc6 {[%clk 0:02:55.3]} 5. h3 {[%clk 0:02:57.5]}
5... Be7 {[%clk 0:02:54.2]} 6. Bd3 {[%clk 0:02:56.5]} 6... Bd7 {[%clk
0:02:53.7]} 7. c3 {[%clk 0:02:55.9]} 7... O-O {[%clk 0:02:53.6]} 8. O-O {[%clk
0:02:52.5]} 8... h6 {[%clk 0:02:53.3]} 9. Re1 {[%clk 0:02:51.8]} 9... d5 {[%clk
0:02:50]} 10. Nbd2 {[%clk 0:02:51.1]} 10... Bd6 {[%clk 0:02:49.4]} 11. Bxd6
{[%clk 0:02:49.7]} 11... cxd6 {[%clk 0:02:49.1]} 12. e4 {[%clk 0:02:48.7]} 12...
dxe4 {[%clk 0:02:48.8]} 13. Nxe4 {[%clk 0:02:48.1]} 13... Nxe4 {[%clk
0:02:48.9]} 14. Bxe4 {[%clk 0:02:46.8]} 14... Qf6 {[%clk 0:02:48.8]} 15. Qb3
{[%clk 0:02:39.4]} 15... d5 {[%clk 0:02:45.8]} 16. Bd3 {[%clk 0:02:36]} 16... b6
{[%clk 0:02:41.7]} 17. Bb5 {[%clk 0:02:28.7]} 17... Qe7 {[%clk 0:02:39.8]} 18.
a4 {[%clk 0:02:24.1]} 18... Nb8 {[%clk 0:02:38.7]} 19. Bd3 {[%clk 0:02:11.1]}
19... Bc6 {[%clk 0:02:33.4]} 20. Qc2 {[%clk 0:02:10.3]} 20... Qd6 {[%clk
0:02:29.9]} 21. Ne5 {[%clk 0:02:09.7]} 21... Bd7 {[%clk 0:02:27.8]} 22. Bh7+
{[%clk 0:02:03.1]} 22... Kh8 {[%clk 0:02:27.1]} 23. Bd3 {[%clk 0:01:59.2]} 23...
Nc6 {[%clk 0:02:26.4]} 24. Nxd7 {[%clk 0:01:52.1]} 24... Qxd7 {[%clk 0:02:26]}
25. Qd2 {[%clk 0:01:43.2]} 25... Ne7 {[%clk 0:02:20.3]} 26. b4 {[%clk
0:01:32.6]} 26... a6 {[%clk 0:02:16.1]} 27. a5 {[%clk 0:01:28.2]} 27... b5
{[%clk 0:02:15.1]} 28. Re2 {[%clk 0:01:22.8]} 28... g6 {[%clk 0:02:05.5]} 29.
Qf4 {[%clk 0:01:21.4]} 29... Kg7 {[%clk 0:01:58.9]} 30. Qe5+ {[%clk 0:01:19.8]}
30... Kh7 {[%clk 0:01:54.8]} 31. Re3 {[%clk 0:01:13.7]} 31... Nf5 {[%clk
0:01:50.8]} 32. Bxf5 {[%clk 0:01:09.9]} 32... gxf5 {[%clk 0:01:49.2]} 33. Qf6
{[%clk 0:01:07.1]} 33... Rg8 {[%clk 0:01:43.8]} 34. Rg3 {[%clk 0:01:04.7]} 34...
Rxg3 {[%clk 0:01:42.7]} 35. fxg3 {[%clk 0:01:03.9]} 35... Rc8 {[%clk 0:01:42.3]}
36. Rc1 {[%clk 0:01:02.8]} 36... Rc7 {[%clk 0:01:26.6]} 37. Qh4 {[%clk
0:00:59.1]} 37... Qe7 {[%clk 0:01:19.1]} 38. Qf4 {[%clk 0:00:56.9]} 38... Rc8
{[%clk 0:01:14.8]} 39. g4 {[%clk 0:00:56]} 39... Qc7 {[%clk 0:01:14.4]} 40. Qf3
{[%clk 0:00:52.5]} 40... Kg6 {[%clk 0:01:03.6]} 41. gxf5+ {[%clk 0:00:49.9]}
41... exf5 {[%clk 0:01:02.9]} 42. Kf1 {[%clk 0:00:25.5]} 42... Qd6 {[%clk
0:00:59.6]} 43. Qe3 {[%clk 0:00:21.1]} 43... Kg7 {[%clk 0:00:52.8]} 44. Qf3
{[%clk 0:00:19.1]} 44... Kg6 {[%clk 0:00:49.5]} 45. Qe3 {[%clk 0:00:18.6]} 45...
Qh2 {[%clk 0:00:42.7]} 46. Qe6+ {[%clk 0:00:17.1]} 46... fxe6 {[%clk 0:00:42]}
0-1

[Event "Betsys MČR v online bleskovém šachu 2021"]
[Site "Chess.com"]
[Date "2021.04.17"]
[Round "12"]
[White "NikolaKusova"]
[Black "keram91"]
[Result "1-0"]
[WhiteElo "980"]
[BlackElo "753"]
[TimeControl "180+1"]
[EndTime "11:00:53 PDT"]
[Termination "Uživatel NikolaKusova zvítězil matem"]

1. e4 {[%clk 0:03:00.9]} 1... e5 {[%clk 0:02:58.7]} 2. Nf3 {[%clk 0:03:00.3]}
2... f6 {[%clk 0:02:56.7]} 3. Nc3 {[%clk 0:02:59.5]} 3... a6 {[%clk 0:02:53.8]}
4. Bc4 {[%clk 0:02:57.3]} 4... Nc6 {[%clk 0:02:53.1]} 5. d3 {[%clk 0:02:54.8]}
5... Bb4 {[%clk 0:02:49.2]} 6. O-O {[%clk 0:02:53.6]} 6... b5 {[%clk 0:02:47.7]}
7. Bb3 {[%clk 0:02:51.8]} 7... g5 {[%clk 0:02:42.8]} 8. Be3 {[%clk 0:02:44.7]}
8... h6 {[%clk 0:02:40.5]} 9. a3 {[%clk 0:02:36.3]} 9... Bxc3 {[%clk 0:02:39.1]}
10. bxc3 {[%clk 0:02:35.1]} 10... d6 {[%clk 0:02:32.8]} 11. d4 {[%clk
0:02:28.2]} 11... g4 {[%clk 0:02:28.3]} 12. Nh4 {[%clk 0:02:24.3]} 12... exd4
{[%clk 0:02:26.2]} 13. cxd4 {[%clk 0:02:21.2]} 13... Qe7 {[%clk 0:02:18.1]} 14.
Ng6 {[%clk 0:02:17.2]} 14... Qxe4 {[%clk 0:02:10]} 15. Nxh8 {[%clk 0:02:14.5]}
15... g3 {[%clk 0:02:00.5]} 16. hxg3 {[%clk 0:02:09.4]} 16... h5 {[%clk
0:01:56.3]} 17. Bxg8 {[%clk 0:02:02.1]} 17... h4 {[%clk 0:01:53.5]} 18. gxh4
{[%clk 0:01:59.3]} 18... Qxh4 {[%clk 0:01:52.1]} 19. Bf7+ {[%clk 0:01:57.1]}
19... Kd8 {[%clk 0:01:49.2]} 20. Ng6 {[%clk 0:01:52.3]} 20... Qh7 {[%clk
0:01:41.9]} 21. Qf3 {[%clk 0:01:24.1]} 21... Bd7 {[%clk 0:01:34.2]} 22. Bd5
{[%clk 0:01:11.8]} 22... Qxg6 {[%clk 0:01:26.2]} 23. Bxc6 {[%clk 0:01:08.9]}
23... Rb8 {[%clk 0:01:20.6]} 24. Bxd7 {[%clk 0:01:04.8]} 24... Kxd7 {[%clk
0:01:20.2]} 25. g3 {[%clk 0:00:58.3]} 25... b4 {[%clk 0:01:17]} 26. axb4 {[%clk
0:00:54.1]} 26... Rxb4 {[%clk 0:01:15.9]} 27. Rab1 {[%clk 0:00:53.4]} 27... Rc4
{[%clk 0:01:07.2]} 28. Qd5 {[%clk 0:00:48.9]} 28... Rxc2 {[%clk 0:00:54.5]} 29.
Rbc1 {[%clk 0:00:40.5]} 29... Rxc1 {[%clk 0:00:49.8]} 30. Rxc1 {[%clk
0:00:40.3]} 30... c6 {[%clk 0:00:48.2]} 31. Qxc6+ {[%clk 0:00:38.9]} 31... Ke6
{[%clk 0:00:47.3]} 32. Bf4 {[%clk 0:00:33.4]} 32... Kf5 {[%clk 0:00:42.4]} 33.
Qc2+ {[%clk 0:00:27.8]} 33... Ke6 {[%clk 0:00:33.3]} 34. Qxg6 {[%clk 0:00:27.5]}
34... a5 {[%clk 0:00:33.3]} 35. Qe4+ {[%clk 0:00:23.1]} 35... Kd7 {[%clk
0:00:31.7]} 36. Qd5 {[%clk 0:00:18.5]} 36... Ke7 {[%clk 0:00:28.7]} 37. Qxd6+
{[%clk 0:00:17.9]} 37... Kf7 {[%clk 0:00:27.9]} 38. Rc7+ {[%clk 0:00:17.4]}
38... Kg6 {[%clk 0:00:27.3]} 39. Qe6 {[%clk 0:00:16.9]} 39... a4 {[%clk
0:00:25.6]} 40. Qg4# {[%clk 0:00:15.3]} 1-0